Cogmind - Beta 9.6 @@@ ROGUE MODE // 2020.07.27 @ 04:56:21 Player: Phillammon Result: Destroyed by G-47 Trooper with Particle Gun Performance ------------- Evolutions (2) 1000 Regions Visited (4) 800 Robots Destroyed (26) 130 Value Destroyed (677) 677 Prototype IDs (1) 20 Alien Tech Used (0) 0 Bonus (0) 0 TOTAL SCORE: 2627 Bonus ------- None Cogmind --------- Core Integrity 0/550 Matter 249/300 Energy 99/100 System Corruption 0% Temperature Cool (9) Movement Core (50) Location -8/Materials Parts ------- > --- POWER (2) -------- (None) > --- PROPULSION (5) --- (None) > --- UTILITY (2) ------ Enhanced Optical Array Targeting Computer > --- WEAPON (2) ------- Light Assault Rifle > --- INVENTORY (4) ---- Small Storage Unit Weight Redist. System Weight Redist. System Peak State ------------ > --- POWER ------------ Ion Engine Heavy Ion Engine > --- PROPULSION ------- Aluminum Leg Aluminum Leg Flight Unit > --- UTILITY ---------- Small Storage Unit Targeting Computer > --- WEAPON ----------- Assault Rifle Assault Rifle > --- INVENTORY -------- Light Ion Engine Weight Redist. System Weight Redist. System Shield Generator Assault Rifle Shotgun [Rating: 12] Favorites ----------- Power Light Ion Engine Engine Light Ion Engine Propulsion Flight Unit Leg Aluminum Leg Flight Unit Flight Unit Utility Small Storage Unit Storage Small Storage Unit Processor Targeting Computer Weapon Assault Rifle Energy Gun Particle Gun Ballistic Gun Assault Rifle Build | -11 -10 -9 -9 -8 ------- Run | Scr Mat Mat Sto Mat Slots Evolved 4 | . . 2 . 2 Power 1 | . . 1 . . Propulsion 3 | . . 1 . 2 Utility . | . . . . . Weapon . | . . . . . Parts Attached 26 | . . 3 12 11 Power 7 | . . 3 3 1 Engine 7 | . . 3 3 1 Core . | . . . . . Reactor . | . . . . . Propulsion 8 | . . . 3 5 Treads . | . . . . . Leg 2 | . . . . 2 Wheel . | . . . . . Hover . | . . . . . Flight 6 | . . . 3 3 Utility 2 | . . . 1 1 Device . | . . . . . Storage . | . . . . . Processor 2 | . . . 1 1 Hackware . | . . . . . Protection . | . . . . . Artifact . | . . . . . Weapon 9 | . . . 5 4 Energy Gun 1 | . . . . 1 Energy Cannon . | . . . . . Ballistic Gun 8 | . . . 5 3 Ballistic Cannon . | . . . . . Launcher . | . . . . . Special Weapon . | . . . . . Impact Weapon . | . . . . . Slashing Weapon . | . . . . . Piercing Weapon . | . . . . . Special Melee Weapon . | . . . . . Unidentified Prototypes 1 | . . 1 . . Parts Lost 17 | . 1 . 4 12 Power 4 | . 1 . 2 1 Propulsion 8 | . . . 1 7 Utility . | . . . . . Weapon 5 | . . . 1 4 Highest Loss Streak 12 | . 1 . 1 12 Average Slot Usage (%) 74 | . 85 71 80 57 Engine 12 | . 14 16 16 3 Leg 11 | . 28 22 5 2 Flight 13 | . . . 19 20 Storage 9 | . 14 11 11 3 Processor 8 | . . . 10 14 Ballistic Gun 18 | . 28 22 17 12 Naked Turns . | . . . . . Heaviest Build 21 | 13 13 21 21 11 Greatest Support 30 | 20 20 20 20 30 Greatest Overweight (x) 4 | . . 1 4 . Average Overweight (x) . | . . . . . Largest Inventory Capacity 6 | 6 6 6 6 6 Average Capacity 5 | 6 6 6 6 4 Most Carried 6 | 5 2 6 6 6 Average Carried 4 | 3 2 3 5 3 Final Capacity 6 | 6 6 6 6 4 Final Carried 6 | 2 2 6 6 3 Class Distribution -------------------- 67% | Mutant 32% | Scavenger-Mutant Dominant Class ---------------- Mutant | -10/Materials Mutant | -9/Materials Scavenger-Mutant | -9/Storage Mutant | -8/Materials Resources | -11 -10 -9 -9 -8 ----------- Run | Scr Mat Mat Sto Mat Matter Collected 741 | 185 81 37 270 168 Remotely . | . . . . . Salvage Created 946 | . 157 49 339 401 Parts 60 | . 8 3 25 24 Haulers Intercepted 4 | . 1 1 1 1 Recyclers Shooed 1 | . . . 1 . Parts Field Recycled . | . . . . . Retrieved Matter . | . . . . . Parts Self-Destructed . | . . . . . Prevented . | . . . . . Kills | -11 -10 -9 -9 -8 ------- Run | Scr Mat Mat Sto Mat Combat Hostiles Destroyed 21 | . 2 . 10 9 Guns 21 | . 2 . 10 9 Classes Destroyed 6 | . 3 . 2 1 Worker 1 | . 1 . . . Hauler 4 | . 1 1 1 1 Swarmer 7 | . . . 4 3 Grunt 10 | . 2 . 5 3 Sentry 3 | . . . 1 2 Hunter 1 | . . . . 1 Best Kill Streak 4 | . 2 1 4 3 Combat Bots Only 4 | . 1 . 4 3 Max Kills in Single Turn 2 | . 2 1 2 1 Gunslinging 1 | . . . 1 . Exploded . | . . . . . Melee . | . . . . . Uniques/NPCs Destroyed . | . . . . . Combat | -11 -10 -9 -9 -8 -------- Run | Scr Mat Mat Sto Mat Damage Taken 2170 | . 285 88 552 1245 Core 710 | . 23 . 137 550 Absorbed by Shields . | . . . . . Core Remaining (%) 85 | 100 90 . 65 . Volleys Fired 90 | . 12 1 42 35 Largest 2 | . 2 2 2 2 Hottest 85 | . 40 40 43 85 Shots Fired 152 | . 24 2 70 56 Gun 152 | . 24 2 70 56 Cannon . | . . . . . Launcher . | . . . . . Special . | . . . . . Kinetic 151 | . 24 2 70 55 Thermal 1 | . . . . 1 Explosive . | . . . . . Electromagnetic . | . . . . . Robot Hit Streak 14 | . 8 10 14 14 Robot Miss Streak 5 | . 1 . 5 2 Penetration Max . | . . . . . Secondary Targets 1 | . . . 1 . Max Gunslinging Chain 1 | . . . 1 . Shots Hit Robots 111 | . 16 2 45 48 Core Hits 53 | . 7 2 24 20 Critical Hits 2 | . . . . 2 Critical Kills . | . . . . . Critical Parts Destroyed 2 | . . . . 2 Melee Attacks . | . . . . . Impact . | . . . . . Slashing . | . . . . . Piercing . | . . . . . Sneak Attacks . | . . . . . Combat Hostiles . | . . . . . Follow-up Attacks . | . . . . . Damage Inflicted 1381 | . 221 21 616 523 Guns 1373 | . 221 20 609 523 Cannons . | . . . . . Explosions . | . . . . . Melee . | . . . . . Ramming 8 | . . 1 7 . Kinetic 1355 | . 221 20 609 505 Thermal 18 | . . . . 18 Explosive . | . . . . . Electromagnetic . | . . . . . Impact . | . . . . . Slashing . | . . . . . Piercing . | . . . . . Highest Corruption 1 | . . . 1 . Average Corruption 1 | . . . 1 . Corruption Purged . | . . . . . Effects 4 | . . . 4 . Message Errors 2 | . . . 2 . Energy Discharges 1 | . . . 1 . Data Loss (minor) 1 | . . . 1 . Overload Shots . | . . . . . Overflow Damage . | . . . . . Projectiles . | . . . . . Explosions . | . . . . . Melee . | . . . . . Knockbacks . | . . . . . Impact . | . . . . . Kinetic . | . . . . . Secondary . | . . . . . Self-Inflicted Damage 3 | . . . 3 . Shots . | . . . . . Rammed 2 | . . 1 1 . Targets Rammed 3 | . . 2 1 . Kicked 1 | . . 1 . . Crushed . | . . . . . Highest Temperature 49 | . 2 . 49 40 Average Temperature 13 | . 2 . 15 14 Received Heat Transfer 690 | . 165 27 147 351 Siege Activations . | . . . . . Robots Corrupted . | . . . . . Combat Hostiles . | . . . . . Parts Fried . | . . . . . Impact Corruptions . | . . . . . Robots Melted . | . . . . . Combat Hostiles . | . . . . . Parts Melted . | . . . . . Heat Transferred 37 | . . . . 37 Parts Sabotaged . | . . . . . Parts Stolen . | . . . . . Parts Stripped . | . . . . . Power Chain Reactions . | . . . . . Missiles Intercepted . | . . . . . Alert | -11 -10 -9 -9 -8 ------- Run | Scr Mat Mat Sto Mat Peak Influence 332 | . 92 70 332 213 Average Influence 126 | . 37 50 186 128 Maximum Alert Level 1 | . . . 1 1 Low Security (%) 78 | 100 100 100 55 90 Level 1 21 | . . . 44 9 Level 2 . | . . . . . Level 3 . | . . . . . Level 4 . | . . . . . Level 5 . | . . . . . High Security . | . . . . . Max Security . | . . . . . Squads Dispatched 9 | . 1 . 4 4 Investigation 4 | . 1 . . 3 Extermination . | . . . . . Reinforcement 5 | . . . 4 1 Assault . | . . . . . Garrison . | . . . . . Intercept . | . . . . . Construction Impeded . | . . . . . Haulers Reinforced . | . . . . . Stealth | -11 -10 -9 -9 -8 --------- Run | Scr Mat Mat Sto Mat Distress Signals 5 | . . . 4 1 Communications Jammed . | . . . . . Distress Signals . | . . . . . Times Spotted 51 | . 5 1 22 23 Peak Tracking Total 18 | . 3 1 6 18 Tactical Retreats 4 | . . . 1 3 Traps | -11 -10 -9 -9 -8 ------- Run | Scr Mat Mat Sto Mat Traps Triggered . | . . . . . Indirectly . | . . . . . Trap Hack Attempts . | . . . . . Triggered . | . . . . . Disarmed . | . . . . . Reprogrammed . | . . . . . Reused . | . . . . . Traps Extracted . | . . . . . Installed . | . . . . . Triggered . | . . . . . Machines | -11 -10 -9 -9 -8 ---------- Run | Scr Mat Mat Sto Mat Machines Disabled . | . . . . . Max in Single Turn . | . . . . . Machines Sabotaged . | . . . . . Garrisons Compromised . | . . . . . Overloaded Fab Kills . | . . . . . Fab Network Shutdowns . | . . . . . Hacking | -11 -10 -9 -9 -8 --------- Run | Scr Mat Mat Sto Mat Machines Accessed 5 | . 1 1 3 . Terminals 4 | . . 1 3 . Fabricators . | . . . . . Repair Stations . | . . . . . Recycling Units 1 | . 1 . . . Scanalyzers . | . . . . . Garrison Access . | . . . . . Total Hacks 8 | . 1 2 5 . Successful 5 | . 1 2 2 . Failed 3 | . . . 3 . Catastrophic 1 | . . . 1 . Database Lockouts . | . . . . . Manual 3 | . 1 2 . . Terminals 7 | . . 2 5 . Fabricators . | . . . . . Repair Stations . | . . . . . Recycling Units 1 | . 1 . . . Scanalyzers . | . . . . . Garrison Access . | . . . . . Terminal Hacks 3 | . . 1 2 . Open Door 2 | . . . 2 . Level Access Points 1 | . . 1 . . Fabricator Hacks . | . . . . . Repair Station Hacks . | . . . . . Recycling Unit Hacks . | . . . . . Scanalyzer . | . . . . . Garrison Access Hacks . | . . . . . Unauthorized Hacks 2 | . 1 1 . . Terminals 1 | . . 1 . . Botnet 1 | . . 1 . . Fabricators . | . . . . . Repair Stations . | . . . . . Recycling Units 1 | . 1 . . . Tunnel 1 | . 1 . . . Scanalyzers . | . . . . . Garrison Access . | . . . . . Data Cores Recovered . | . . . . . Used . | . . . . . Hacking Detections 2 | . . 1 1 . Full Trace Events 1 | . . . 1 . Feedback Events 1 | . . . 1 . Corruption 1 | . . . 1 . Feedback Blocked . | . . . . . Robot Schematics Acquired . | . . . . . Robots Built . | . . . . . Matter . | . . . . . Time . | . . . . . Total Robot Build Rating . | . . . . . Part Schematics Acquired . | . . . . . Parts Built . | . . . . . Matter . | . . . . . Time . | . . . . . Total Part Build Rating . | . . . . . Parts Repaired . | . . . . . Time . | . . . . . Parts Recycled . | . . . . . Recycled Matter . | . . . . . Retrieved Matter . | . . . . . Retrieved Components . | . . . . . Parts Scanalyzed . | . . . . . Part Schematics Acquired . | . . . . . Parts Damaged . | . . . . . Bothacking | -11 -10 -9 -9 -8 ------------ Run | Scr Mat Mat Sto Mat Used RIF Installer . | . . . . . Robots Hacked . | . . . . . Non-combat . | . . . . . Combat . | . . . . . Robot Hacks Applied . | . . . . . Relay Couplers Released . | . . . . . Robots Rewired . | . . . . . Allies Hacked . | . . . . . Hacks Repelled . | . . . . . Allies | -11 -10 -9 -9 -8 -------- Run | Scr Mat Mat Sto Mat Total Allies . | . . . . . Largest Group . | . . . . . Highest-Rated Group . | . . . . . Highest-Rated Ally . | . . . . . Total Orders 8 | . . . . 8 EXPLORE 8 | . . . . 8 Ally Attacks . | . . . . . Total Damage . | . . . . . Kills . | . . . . . Allies Corrupted 2 | . . . 2 . Allies Melted . | . . . . . Intel | -11 -10 -9 -9 -8 ------- Run | Scr Mat Mat Sto Mat Robot Analysis Total . | . . . . . Derelict Logs Recovered . | . . . . . Drone Launches 16 | . . . 16 . Drone Recoveries . | . . . . . Exploration | -11 -10 -9 -9 -8 ------------- Run | Scr Mat Mat Sto Mat Turns Passed 876 | 3 145 137 383 208 Spaces Moved 487 | 1 83 88 215 100 Core 8 | . . . 7 1 Treads . | . . . . . Legs 220 | 1 83 88 42 6 Wheels . | . . . . . Hover . | . . . . . Flight 259 | . . . 166 93 Fastest Speed 34 | 120 120 120 34 34 Average Speed 98 | 120 120 133 103 40 Slowest Speed 250 | 120 120 150 250 120 Overloaded Moves . | . . . . . Propulsion Burnouts . | . . . . . Robots Hopped 9 | . . . 3 6 Cave-ins Triggered . | . . . . . Exploration Rate (%) 22 | 1 22 14 49 27 Regions Visited 4 Branch Regions 1 Pre-discovered Areas 1 | . 1 . . . Known Exits Taken 1 | . . . 1 . Unknown Exits Taken 3 | 1 1 1 . . Scrap Searched . | . . . . . Spaces Dug . | . . . . . Terrain Destroyed . | . . . . . Melee . | . . . . . Projectile . | . . . . . AOE . | . . . . . Actions | -11 -10 -9 -9 -8 --------- Run | Scr Mat Mat Sto Mat Total 726 | 4 104 105 307 206 Wait 95 | . 10 4 19 62 Move 469 | . 82 88 209 90 Hop 6 | . . . 2 4 Pick Up 15 | . . 7 4 4 Fast Attach 8 | . . . 5 3 Attach 12 | . . 3 2 7 Detach . | . . . . . Swap 6 | . . . 5 1 Drop 15 | 4 . 1 10 . Fire 90 | . 12 1 42 35 Melee . | . . . . . Ram 1 | . . . 1 . Kick 1 | . . 1 . . Crush . | . . . . . Escape Stasis . | . . . . . Rewire . | . . . . . Trap . | . . . . . Miscellaneous 8 | . . . 8 . Route ------- -11/Scrapyard -10/Materials -9/Materials (discovered 4 exits: Mat x3 / *Sto) -9/Storage -8/Materials History --------- Turn | Location | Event 4 | -11/Scrapyard | Discovered new exit (range 0) 4 | -11/Scrapyard | Entered Materials 103 | -10/Materials | Discovered new exit (range 15) 149 | -10/Materials | Entered another Materials area 149 | -9/Materials | Evolved 2 slots: Power x1, Propulsion x1 159 | -9/Materials | Identified exit to Materials 278 | -9/Materials | Discovered new exit (range 4) 286 | -9/Materials | Entered Storage 327 | -9/Storage | Build established: Mutant 661 | -9/Storage | Discovered exit to Materials (range 7) 669 | -9/Storage | Entered Materials 669 | -8/Materials | Accompanied by 8 allies 669 | -8/Materials | Evolved 2 slots: Propulsion x2 835 | -8/Materials | Core integrity fell below 50% 862 | -8/Materials | Core integrity fell below 20% 877 | -8/Materials | Destroyed by G-47 Trooper with Particle Gun Last Messages --------------- 00834_ Slug penetrates Wall. 00841_ Flight Unit destroyed. 00843_ Slug penetrates Wall. 00843_ Y-45 Defender destroyed. 00846_ Slug penetrates Wall. 00855_ Penetrated by Slug. 00855_ H-55 Commando destroyed. 00857_ Y-45 Defender suffers critical hit. 00857_ Destroyed Lgt. Treads. 00861_ Assault Rifle destroyed. 00863_ Acquired Lgt. Assault Rifle. 00864_ Carbon-fiber Leg destroyed. 00866_ Acquired Particle Gun. 00869_ Acquired 13 matter. 00872_ C-30 ARC bursts open, deploying its payload. 00872_ G-47 Trooper unfolds itself. 00873_ Particle Gun destroyed. 00873_ Carbon-fiber Leg destroyed. 00875_ Y-45 Defender destroyed. 00876_ Acquired 50 matter. Map ----- +----------------------------------------------------+ | | | | | ?????????????????????????????????????????????????? | | ?????????????????????????????????????????????????? | | ?????????????????????????????????????????????????? | | ?????????????????????????????????????????????????? | | ?????????????????????????????????????????????????? | | ?????????????????????????????????????????????????? | | ?????????????????????????????????????????????????? | | ?????????????????????????????????????????????????? | | ?????????????????????????????????????????????????? | | ?????????????????????????????????????????????????? | | ?????????????????????? ??????????????????????????? | | ??????????????????????" ?????????????????????????? | | ??????????????????????" ?????????????????????????? | | ??????????????????????" ?????????????????????????? | | ?????????????????????? ?????????????????????????? | | ?????????????????######+#####????????????????????? | | ?????????????????? ????????????????????? | | ?????####??????????? g ?????????????????????? | | ????? ????????????? % ?????????????????????? | | ?????# ??????????????# g #?????????????????????? | | ?????# ?###########??# ! ########??????????????? | | ?????# ?# #??#[b!#%% ! #??????????????? | | ?????# ?#] #??#*% +%! #??????????????? | | ?????# ## #??#=@*#[!" " #??????????????? | | ?????# ## """ """ #??#!=%#! R" #??????????????? | | ?????# ## """ """ #??#[*%# """ #??????????????? | | ?????# ## """ """ ???# g # #??????????????? | | ?????# ## ?????# ########??????????????? | | ????## ## ???????# #?????????????????????? | | ????# ###/########## #?????????????????????? | | ????# T" #########?????????????? | | ????+ " r #?????????????? | | ????# ####### ???? | | ????# !###### ###########????????????? ?????? | | ????## ##????# #???????????????????????????????? | | ?????# #?????# #???????????????????????????????? | | ?????# #?????# #???????????????????????????????? | | ?????# #?????# ???????????????????????????????? | | ?????# #?????###???????????????????????????????? | | ?????# #???????????????????????????????????????? | | ?????# #???????????????????????????????????????? | | ###### ##########??????????????????????????????? | | !!!!## # #??????????????????????????????? | | ! !!## # "S ! #??????????????????????????????? | | ## # """ #??????????????????????????????? | | ##### # "" !#??????????????????????????????? | | ##### + #??????????????????????????????? | | # """" #??????????????????????????????? | +----------------------------------------------------+ Best States ------------- Heat Dissipation 31 Energy Generation 19 Energy Capacity 430 Matter Stores 300 Matter Capacity 300 Sight Range 22 Terrain Scan Density 10 Evasion (%) 63 Targeting Accuracy 5 Item Schematics ----------------- None Robot Schematics ------------------ None Fabricated ------------ Nothing Alien Tech Used ----------------- None Achievements -------------- Cya! Challenges ------------ None Game ------ Seed ElectronShadingWarhead Manual? 0 Play Time 00:13:14 Cumulative 17.4 hours Start 2020.07.27 @ 04:43:41 End 2020.07.27 @ 04:56:21 Sessions 1 Manual Loads 0 Difficulty Rogue Special Mode None Game No. 53 Rogue 53 Adventurer 0 Explorer 0 Win Type - Total 0 Types 0/0/0/0/0/0/0 Lore% 22 Gallery% 25 Achievement% 24 Wizard Run 0 Options --------- ASCII 0 Keyboard 0 Movement Mouse Keybinds 0 Fullscreen 1 Font 18/SmallcapsGlow Map View 76x50 Tactical HUD 1 Map Filters NONE Filters NONE Steam 0 RUN: 1874e7dd-cc21-4154-997b-29c753163b6c